[Event "*** Titled Tuesday Blitz"]
[Site "Chess.com"]
[Date "2020.11.10"]
[Round "4"]
[White "amiralfio"]
[Black "Vamostodorecto"]
[Result "0-1"]
[WhiteElo "2520"]
[BlackElo "2363"]
[TimeControl "180+1"]
[EndTime "10:41:35 PST"]
[Termination "Vamostodorecto won by resignation"]

1. d4 {[%clk 0:03:00.9]} 1... Nf6 {[%clk 0:02:56.4]} 2. Bf4 {[%clk 0:03:01.3]}
2... g6 {[%clk 0:02:56.6]} 3. Nc3 {[%clk 0:03:00.4]} 3... Bg7 {[%clk 0:02:57.3]}
4. e4 {[%clk 0:03:00.6]} 4... d6 {[%clk 0:02:55.7]} 5. Qd2 {[%clk 0:03:00.4]}
5... O-O {[%clk 0:02:56.3]} 6. f3 {[%clk 0:03:00.2]} 6... Nbd7 {[%clk
0:02:52.5]} 7. O-O-O {[%clk 0:02:56.9]} 7... a6 {[%clk 0:02:51.6]} 8. h4 {[%clk
0:02:53.1]} 8... c5 {[%clk 0:02:50.4]} 9. d5 {[%clk 0:02:52.8]} 9... h5 {[%clk
0:02:37]} 10. Nh3 {[%clk 0:02:50.6]} 10... b5 {[%clk 0:02:35.3]} 11. Bh6 {[%clk
0:02:45.7]} 11... Qa5 {[%clk 0:02:29.1]} 12. Bxg7 {[%clk 0:02:43.8]} 12... Kxg7
{[%clk 0:02:28.4]} 13. Kb1 {[%clk 0:02:43.9]} 13... b4 {[%clk 0:02:18.9]} 14.
Ne2 {[%clk 0:02:34.7]} 14... c4 {[%clk 0:02:19.2]} 15. Nd4 {[%clk 0:02:13.3]}
15... c3 {[%clk 0:02:08.5]} 16. Nc6 {[%clk 0:02:10.7]} 16... Qc5 {[%clk
0:01:53.9]} 17. Qd4 {[%clk 0:01:46.7]} 17... e5 {[%clk 0:01:41.4]} 18. Qxb4
{[%clk 0:01:36.5]} 18... cxb2 {[%clk 0:01:36.4]} 19. Qxc5 {[%clk 0:01:25.3]}
19... Nxc5 {[%clk 0:01:37.3]} 20. Kxb2 {[%clk 0:01:25.7]} 20... Bd7 {[%clk
0:01:35.6]} 21. Bc4 {[%clk 0:01:12.5]} 21... Rfc8 {[%clk 0:01:34]} 22. Ng5
{[%clk 0:01:07.4]} 22... Ne8 {[%clk 0:01:18.1]} 23. Na5 {[%clk 0:00:49.8]} 23...
Na4+ {[%clk 0:01:12.4]} 24. Ka3 {[%clk 0:00:39.6]} 24... Rc5 {[%clk 0:01:07.5]}
25. Ne6+ {[%clk 0:00:30.3]} 25... Bxe6 {[%clk 0:00:44.8]} 26. dxe6 {[%clk
0:00:31.2]} 26... Rxa5 {[%clk 0:00:44.4]} 27. exf7 {[%clk 0:00:29.4]} 27... Rb8
{[%clk 0:00:33.2]} 28. fxe8=Q {[%clk 0:00:26.4]} 28... Nc3+ {[%clk 0:00:31.1]}
0-1

[Event "*** Titled Tuesday Blitz"]
[Site "Chess.com"]
[Date "2020.11.10"]
[Round "4"]
[White "Meri-Arabidze"]
[Black "Bastiandash"]
[Result "1-0"]
[WhiteElo "2615"]
[BlackElo "2360"]
[TimeControl "180+1"]
[EndTime "10:41:38 PST"]
[Termination "Meri-Arabidze won by resignation"]

1. d4 {[%clk 0:03:00.9]} 1... Nf6 {[%clk 0:02:58.8]} 2. c4 {[%clk 0:03:01.4]}
2... e6 {[%clk 0:02:59.2]} 3. Nf3 {[%clk 0:03:00.8]} 3... Bb4+ {[%clk
0:02:59.6]} 4. Nc3 {[%clk 0:02:59.9]} 4... O-O {[%clk 0:02:58.8]} 5. e3 {[%clk
0:02:59.6]} 5... b6 {[%clk 0:02:57.7]} 6. Bd3 {[%clk 0:02:59.5]} 6... Bb7 {[%clk
0:02:58]} 7. O-O {[%clk 0:02:59.1]} 7... Bxc3 {[%clk 0:02:55]} 8. bxc3 {[%clk
0:03:00]} 8... Ne4 {[%clk 0:02:55.3]} 9. Qc2 {[%clk 0:02:59.6]} 9... f5 {[%clk
0:02:54.6]} 10. c5 {[%clk 0:02:58.9]} 10... bxc5 {[%clk 0:02:41.1]} 11. Rb1
{[%clk 0:02:58.3]} 11... Bc6 {[%clk 0:02:27.6]} 12. Ne5 {[%clk 0:02:54.6]} 12...
Qh4 {[%clk 0:01:44.2]} 13. f3 {[%clk 0:02:50.3]} 13... Nf6 {[%clk 0:01:28.7]}
14. Nxc6 {[%clk 0:02:45.2]} 14... Nxc6 {[%clk 0:01:29.6]} 15. Ba3 {[%clk
0:02:45.5]} 15... Rab8 {[%clk 0:01:14.1]} 16. Bxc5 {[%clk 0:02:43.6]} 16... d6
{[%clk 0:01:14.2]} 17. Ba3 {[%clk 0:02:43.6]} 17... Nd5 {[%clk 0:01:14.6]} 18.
Qd2 {[%clk 0:02:40.1]} 18... f4 {[%clk 0:01:09.4]} 19. e4 {[%clk 0:02:09.2]}
19... Ne3 {[%clk 0:01:09.2]} 20. Rfc1 {[%clk 0:02:04.9]} 20... Qg5 {[%clk
0:01:02.7]} 21. e5 {[%clk 0:01:58.3]} 21... dxe5 {[%clk 0:00:56.8]} 22. Bxf8
{[%clk 0:01:56.7]} 22... Rxf8 {[%clk 0:00:57.7]} 23. Be4 {[%clk 0:01:53.6]}
23... Ne7 {[%clk 0:00:47.1]} 24. Rb7 {[%clk 0:01:45.1]} 24... exd4 {[%clk
0:00:39.5]} 25. cxd4 {[%clk 0:01:46]} 25... N7d5 {[%clk 0:00:38.8]} 26. Bxd5
{[%clk 0:01:40.2]} 26... Nxd5 {[%clk 0:00:36.8]} 27. Rxa7 {[%clk 0:01:40]} 27...
Rb8 {[%clk 0:00:37.1]} 28. Qe2 {[%clk 0:01:25.3]} 28... Qf6 {[%clk 0:00:31.1]}
29. Qe5 {[%clk 0:01:23.5]} 29... Qg6 {[%clk 0:00:25.6]} 30. Qe4 {[%clk 0:01:22]}
30... Qf6 {[%clk 0:00:20.6]} 31. Ra6 {[%clk 0:01:20]} 31... Kf7 {[%clk
0:00:14.4]} 32. Rac6 {[%clk 0:01:07]} 32... Rb7 {[%clk 0:00:08.3]} 33. a4 {[%clk
0:01:06.1]} 33... h5 {[%clk 0:00:06.2]} 34. a5 {[%clk 0:01:05.7]} 34... h4
{[%clk 0:00:06.8]} 35. a6 {[%clk 0:01:06.1]} 35... Ra7 {[%clk 0:00:07.4]} 36. h3
{[%clk 0:01:06.3]} 36... Nb4 {[%clk 0:00:03]} 37. Rxc7+ {[%clk 0:01:05.1]} 37...
Rxc7 {[%clk 0:00:03.9]} 38. Rxc7+ {[%clk 0:01:05.1]} 38... Ke8 {[%clk
0:00:04.5]} 39. Qa8+ {[%clk 0:01:03.7]} 1-0

[Event "*** Titled Tuesday Blitz"]
[Site "Chess.com"]
[Date "2020.11.10"]
[Round "4"]
[White "riddhi_07"]
[Black "Shushik"]
[Result "0-1"]
[WhiteElo "1748"]
[BlackElo "2237"]
[TimeControl "180+1"]
[EndTime "10:41:39 PST"]
[Termination "Shushik won by resignation"]

1. e4 {[%clk 0:03:00.9]} 1... e5 {[%clk 0:03:00]} 2. Nf3 {[%clk 0:02:59.8]} 2...
Nc6 {[%clk 0:03:00.2]} 3. Bb5 {[%clk 0:02:52.8]} 3... Nf6 {[%clk 0:02:59.7]} 4.
O-O {[%clk 0:02:43.8]} 4... Nxe4 {[%clk 0:02:59.6]} 5. d4 {[%clk 0:02:39.2]}
5... Nd6 {[%clk 0:02:58.7]} 6. Re1 {[%clk 0:02:36.9]} 6... Nxb5 {[%clk
0:02:53.5]} 7. Nxe5 {[%clk 0:02:30.4]} 7... Be7 {[%clk 0:02:51.3]} 8. Qh5 {[%clk
0:02:24.5]} 8... O-O {[%clk 0:02:39.8]} 9. Re3 {[%clk 0:02:01.6]} 9... Nxe5
{[%clk 0:02:25.3]} 10. Rh3 {[%clk 0:01:50.5]} 10... h6 {[%clk 0:02:18.4]} 11.
Bxh6 {[%clk 0:01:29.8]} 11... Ng6 {[%clk 0:01:23.7]} 12. Bxg7 {[%clk 0:00:55.4]}
12... Kxg7 {[%clk 0:01:22.4]} 13. Qh7+ {[%clk 0:00:54.1]} 13... Kf6 {[%clk
0:01:22.1]} 14. Rf3+ {[%clk 0:00:52.8]} 14... Ke6 {[%clk 0:01:21.4]} 15. d5+
{[%clk 0:00:45.5]} 15... Kd6 {[%clk 0:01:18]} 16. c4 {[%clk 0:00:43.9]} 16...
Nd4 {[%clk 0:01:14.8]} 17. c5+ {[%clk 0:00:40.9]} 17... Kxc5 {[%clk 0:01:11.6]}
18. b4+ {[%clk 0:00:34.9]} 18... Kb6 {[%clk 0:01:08.8]} 19. Rc3 {[%clk
0:00:24.1]} 19... Ne2+ {[%clk 0:01:07.3]} 20. Kf1 {[%clk 0:00:22.1]} 20... Nxc3
{[%clk 0:01:07]} 21. Nxc3 {[%clk 0:00:23]} 21... c6 {[%clk 0:01:00.7]} 22. Qg7
{[%clk 0:00:19.3]} 22... Bf6 {[%clk 0:00:57.4]} 23. Na4+ {[%clk 0:00:14.4]}
23... Kc7 {[%clk 0:00:55.7]} 24. d6+ {[%clk 0:00:15.3]} 24... Kb8 {[%clk
0:00:55.3]} 25. Qh6 {[%clk 0:00:12.5]} 25... Bxa1 {[%clk 0:00:54.1]} 26. Qe3
{[%clk 0:00:13]} 26... Qf6 {[%clk 0:00:47.4]} 27. Nc5 {[%clk 0:00:10.5]} 27...
Qd4 {[%clk 0:00:44]} 28. Qe7 {[%clk 0:00:08.4]} 28... Qd1+ {[%clk 0:00:42.2]}
29. Qe1 {[%clk 0:00:06.7]} 29... Qxe1+ {[%clk 0:00:41.9]} 30. Kxe1 {[%clk
0:00:07.6]} 30... b6 {[%clk 0:00:41.8]} 31. Nxd7+ {[%clk 0:00:08.5]} 31... Bxd7
{[%clk 0:00:41.2]} 0-1

[Event "*** Titled Tuesday Blitz"]
[Site "Chess.com"]
[Date "2020.11.10"]
[Round "4"]
[White "kuli4ik"]
[Black "Lion-Al-Messi"]
[Result "1-0"]
[WhiteElo "2858"]
[BlackElo "2557"]
[TimeControl "180+1"]
[EndTime "10:41:40 PST"]
[Termination "kuli4ik won on time"]

1. e4 {[%clk 0:03:00.9]} 1... b6 {[%clk 0:03:00.9]} 2. d4 {[%clk 0:02:59.2]}
2... Bb7 {[%clk 0:03:00.9]} 3. Bd3 {[%clk 0:02:59.3]} 3... e6 {[%clk 0:03:00.5]}
4. Nf3 {[%clk 0:02:58.1]} 4... c5 {[%clk 0:03:00.5]} 5. c3 {[%clk 0:02:57.6]}
5... Nf6 {[%clk 0:03:00.8]} 6. Qe2 {[%clk 0:02:56.6]} 6... Be7 {[%clk
0:03:01.1]} 7. O-O {[%clk 0:02:56]} 7... Nc6 {[%clk 0:03:00.8]} 8. a3 {[%clk
0:02:54.2]} 8... Na5 {[%clk 0:03:00.8]} 9. Nbd2 {[%clk 0:02:49.6]} 9... c4
{[%clk 0:03:00.8]} 10. Bc2 {[%clk 0:02:48.8]} 10... Qc7 {[%clk 0:03:00.8]} 11.
Re1 {[%clk 0:02:47.1]} 11... d6 {[%clk 0:02:59.7]} 12. e5 {[%clk 0:02:42.5]}
12... Nd5 {[%clk 0:02:52]} 13. Ne4 {[%clk 0:02:38.1]} 13... O-O-O {[%clk
0:02:23.8]} 14. exd6 {[%clk 0:02:36]} 14... Bxd6 {[%clk 0:02:23]} 15. Nxd6+
{[%clk 0:02:35.9]} 15... Qxd6 {[%clk 0:02:20.2]} 16. Ne5 {[%clk 0:02:29.7]}
16... Rdf8 {[%clk 0:02:17.8]} 17. Nxc4 {[%clk 0:02:26.2]} 17... Nxc4 {[%clk
0:02:05.9]} 18. Qxc4+ {[%clk 0:02:24.3]} 18... Kb8 {[%clk 0:02:06.5]} 19. Qd3
{[%clk 0:02:22.6]} 19... g5 {[%clk 0:02:00.3]} 20. g3 {[%clk 0:01:57.6]} 20...
Rfg8 {[%clk 0:01:53.6]} 21. Qe2 {[%clk 0:01:53.6]} 21... Ka8 {[%clk 0:01:08.1]}
22. Be4 {[%clk 0:01:48.6]} 22... h5 {[%clk 0:01:03]} 23. c4 {[%clk 0:01:39]}
23... Nf4 {[%clk 0:00:52.9]} 24. gxf4 {[%clk 0:01:26.6]} 24... gxf4+ {[%clk
0:00:50.4]} 25. Kf1 {[%clk 0:01:25.7]} 25... f3 {[%clk 0:00:29.1]} 26. Bxb7+
{[%clk 0:01:22.6]} 26... Kxb7 {[%clk 0:00:27.8]} 27. Qxf3+ {[%clk 0:01:22.4]}
27... Ka6 {[%clk 0:00:27.2]} 28. Be3 {[%clk 0:01:04]} 28... Qxh2 {[%clk
0:00:22.7]} 29. b4 {[%clk 0:01:01.5]} 29... Qg1+ {[%clk 0:00:19.7]} 30. Ke2
{[%clk 0:01:00.6]} 30... Qg4 {[%clk 0:00:20.6]} 31. Qxg4 {[%clk 0:00:57]} 31...
hxg4 {[%clk 0:00:19.5]} 32. Rh1 {[%clk 0:00:56.5]} 32... f5 {[%clk 0:00:14.7]}
33. Bf4 {[%clk 0:00:55.9]} 33... Rd8 {[%clk 0:00:12.7]} 34. Be5 {[%clk
0:00:55.4]} 34... Rhf8 {[%clk 0:00:06.4]} 35. Rh7 {[%clk 0:00:54.1]} 35... Rc8
{[%clk 0:00:03.4]} 36. b5+ {[%clk 0:00:52.9]} 1-0

[Event "*** Titled Tuesday Blitz"]
[Site "Chess.com"]
[Date "2020.11.10"]
[Round "4"]
[White "Stalri"]
[Black "maxip32"]
[Result "0-1"]
[WhiteElo "2190"]
[BlackElo "2408"]
[TimeControl "180+1"]
[EndTime "10:41:40 PST"]
[Termination "maxip32 won by resignation"]

1. d4 {[%clk 0:02:56.7]} 1... Nf6 {[%clk 0:02:59.6]} 2. c4 {[%clk 0:02:56.2]}
2... g6 {[%clk 0:02:59.1]} 3. Nc3 {[%clk 0:02:55.6]} 3... Bg7 {[%clk 0:02:56.4]}
4. f3 {[%clk 0:02:55.6]} 4... O-O {[%clk 0:02:55.2]} 5. e4 {[%clk 0:02:55.5]}
5... d6 {[%clk 0:02:55.4]} 6. Be3 {[%clk 0:02:55.3]} 6... Nc6 {[%clk 0:02:50.9]}
7. Qd2 {[%clk 0:02:49.8]} 7... a6 {[%clk 0:02:50.9]} 8. Nge2 {[%clk 0:02:49.2]}
8... Na5 {[%clk 0:02:49.8]} 9. Nc1 {[%clk 0:02:48.9]} 9... Nd7 {[%clk
0:02:48.9]} 10. Be2 {[%clk 0:02:48.1]} 10... c5 {[%clk 0:02:48.7]} 11. dxc5
{[%clk 0:02:47.6]} 11... dxc5 {[%clk 0:02:31.9]} 12. Nb3 {[%clk 0:02:43.5]}
12... Nxb3 {[%clk 0:02:18.5]} 13. axb3 {[%clk 0:02:44.4]} 13... b6 {[%clk
0:02:12.3]} 14. h4 {[%clk 0:02:36.5]} 14... Ne5 {[%clk 0:02:09]} 15. Qc2 {[%clk
0:02:30.4]} 15... Nc6 {[%clk 0:02:05.5]} 16. Rd1 {[%clk 0:02:28.1]} 16... Nd4
{[%clk 0:01:55]} 17. Qb1 {[%clk 0:02:25.5]} 17... h5 {[%clk 0:01:50.1]} 18. Nd5
{[%clk 0:02:16]} 18... e6 {[%clk 0:01:45.9]} 19. Nf4 {[%clk 0:02:08.1]} 19...
Qc7 {[%clk 0:01:45]} 20. g4 {[%clk 0:02:03]} 20... hxg4 {[%clk 0:01:44.1]} 21.
fxg4 {[%clk 0:02:03.9]} 21... Be5 {[%clk 0:01:37.7]} 22. Nd3 {[%clk 0:01:45.1]}
22... Bb7 {[%clk 0:01:25.3]} 23. Nxe5 {[%clk 0:01:42.4]} 23... Qxe5 {[%clk
0:01:26.2]} 24. Bxd4 {[%clk 0:01:34.7]} 24... cxd4 {[%clk 0:01:24.2]} 25. Bf3
{[%clk 0:01:33.1]} 25... f5 {[%clk 0:01:16.3]} 26. gxf5 {[%clk 0:01:31.8]} 26...
exf5 {[%clk 0:01:15.9]} 27. Rg1 {[%clk 0:01:18.2]} 27... Rf6 {[%clk 0:00:52.6]}
28. Rg5 {[%clk 0:01:11.9]} 28... Qh2 {[%clk 0:00:42.2]} 29. Rg2 {[%clk 0:00:45]}
29... Qxh4+ {[%clk 0:00:40.6]} 30. Kd2 {[%clk 0:00:44]} 30... Qf4+ {[%clk
0:00:32.5]} 31. Kc2 {[%clk 0:00:34.6]} 31... Bxe4+ {[%clk 0:00:25.6]} 32. Bxe4
{[%clk 0:00:32.7]} 32... Qxe4+ {[%clk 0:00:26.5]} 33. Kc1 {[%clk 0:00:32.1]}
33... Qxg2 {[%clk 0:00:25.6]} 34. Rxd4 {[%clk 0:00:32.2]} 34... Re8 {[%clk
0:00:20.6]} 35. Qd3 {[%clk 0:00:31.4]} 35... Re1+ {[%clk 0:00:19.7]} 0-1

[Event "*** Titled Tuesday Blitz"]
[Site "Chess.com"]
[Date "2020.11.10"]
[Round "4"]
[White "Kotofeyca"]
[Black "Korchmar_Vasiliy"]
[Result "0-1"]
[WhiteElo "2373"]
[BlackElo "2618"]
[TimeControl "180+1"]
[EndTime "10:41:41 PST"]
[Termination "Korchmar_Vasiliy won on time"]

1. d4 {[%clk 0:03:00.9]} 1... Nf6 {[%clk 0:02:56.8]} 2. c4 {[%clk 0:03:00.8]}
2... c6 {[%clk 0:02:57.2]} 3. Nc3 {[%clk 0:03:00.2]} 3... d5 {[%clk 0:02:57.7]}
4. cxd5 {[%clk 0:03:00.5]} 4... cxd5 {[%clk 0:02:57.7]} 5. Bf4 {[%clk
0:03:01.1]} 5... Nc6 {[%clk 0:02:55.9]} 6. e3 {[%clk 0:03:01.6]} 6... Bg4 {[%clk
0:02:54.4]} 7. f3 {[%clk 0:02:58.3]} 7... Bd7 {[%clk 0:02:52.6]} 8. Bd3 {[%clk
0:02:58.1]} 8... e6 {[%clk 0:02:50.5]} 9. Nge2 {[%clk 0:02:57.9]} 9... Be7
{[%clk 0:02:49.9]} 10. O-O {[%clk 0:02:56.7]} 10... O-O {[%clk 0:02:50]} 11. Rc1
{[%clk 0:02:51.6]} 11... Rc8 {[%clk 0:02:50.1]} 12. Na4 {[%clk 0:02:48.4]} 12...
Qa5 {[%clk 0:02:26.6]} 13. Nac3 {[%clk 0:02:08.5]} 13... a6 {[%clk 0:02:22.1]}
14. a3 {[%clk 0:02:06]} 14... b5 {[%clk 0:02:21.9]} 15. Qd2 {[%clk 0:01:40.7]}
15... Qb6 {[%clk 0:02:21.9]} 16. Rc2 {[%clk 0:01:33]} 16... Na5 {[%clk
0:02:21.1]} 17. Rfc1 {[%clk 0:01:26.9]} 17... Nb3 {[%clk 0:02:20.1]} 18. Qd1
{[%clk 0:01:25.6]} 18... Nxc1 {[%clk 0:02:20.3]} 19. Qxc1 {[%clk 0:01:25]} 19...
a5 {[%clk 0:02:20.8]} 20. h3 {[%clk 0:01:18]} 20... b4 {[%clk 0:02:16.4]} 21.
axb4 {[%clk 0:01:13.1]} 21... axb4 {[%clk 0:02:17.3]} 22. Nb1 {[%clk 0:01:13.4]}
22... Rxc2 {[%clk 0:02:06]} 23. Qxc2 {[%clk 0:01:13.5]} 23... Rc8 {[%clk
0:02:06.6]} 24. Qd1 {[%clk 0:01:08.5]} 24... Bb5 {[%clk 0:02:04.8]} 25. Kh2
{[%clk 0:01:00.6]} 25... Qa6 {[%clk 0:02:02.5]} 26. Bxb5 {[%clk 0:00:48.5]}
26... Qxb5 {[%clk 0:02:03.4]} 27. Nc1 {[%clk 0:00:46.6]} 27... Qc4 {[%clk
0:01:51]} 28. Nd3 {[%clk 0:00:37.8]} 28... Qc2 {[%clk 0:01:51.3]} 29. Qf1 {[%clk
0:00:37.7]} 29... Ra8 {[%clk 0:01:44.6]} 30. Ne5 {[%clk 0:00:21.3]} 30... Ra1
{[%clk 0:01:36.1]} 31. Qb5 {[%clk 0:00:20.2]} 31... Qxb1 {[%clk 0:01:36.4]} 32.
Qb8+ {[%clk 0:00:17.4]} 32... Bf8 {[%clk 0:01:37]} 33. Nc6 {[%clk 0:00:14]}
33... Nd7 {[%clk 0:00:51]} 34. Qe8 {[%clk 0:00:12.7]} 34... Qh1+ {[%clk
0:00:49.5]} 35. Kg3 {[%clk 0:00:12]} 35... Rg1 {[%clk 0:00:49.7]} 0-1

[Event "*** Titled Tuesday Blitz"]
[Site "Chess.com"]
[Date "2020.11.10"]
[Round "4"]
[White "talman67"]
[Black "124chess"]
[Result "1-0"]
[WhiteElo "2548"]
[BlackElo "2721"]
[TimeControl "180+1"]
[EndTime "10:41:42 PST"]
[Termination "talman67 won by resignation"]

1. e4 {[%clk 0:03:00.9]} 1... e6 {[%clk 0:02:57.5]} 2. d4 {[%clk 0:03:00.6]}
2... d5 {[%clk 0:02:58.4]} 3. Nc3 {[%clk 0:03:00.9]} 3... Bb4 {[%clk 0:02:58.3]}
4. e5 {[%clk 0:03:01.1]} 4... c5 {[%clk 0:02:58.9]} 5. a3 {[%clk 0:03:01.7]}
5... Bxc3+ {[%clk 0:02:59.5]} 6. bxc3 {[%clk 0:03:02.6]} 6... Qa5 {[%clk
0:03:00.1]} 7. Bd2 {[%clk 0:03:01.5]} 7... Qa4 {[%clk 0:03:00.6]} 8. Qg4 {[%clk
0:02:55.2]} 8... Kf8 {[%clk 0:02:58.3]} 9. Nf3 {[%clk 0:02:54]} 9... Ne7 {[%clk
0:02:53.1]} 10. Bd3 {[%clk 0:02:53.8]} 10... c4 {[%clk 0:02:51.7]} 11. Be2
{[%clk 0:02:53.9]} 11... Qxc2 {[%clk 0:02:51.5]} 12. O-O {[%clk 0:02:54.5]}
12... Nbc6 {[%clk 0:02:40.1]} 13. a4 {[%clk 0:02:54.1]} 13... b6 {[%clk
0:02:37.5]} 14. Rfc1 {[%clk 0:02:33.4]} 14... Qf5 {[%clk 0:02:33.4]} 15. Qg3
{[%clk 0:02:32.8]} 15... Bd7 {[%clk 0:02:24.6]} 16. Bd1 {[%clk 0:02:32.7]} 16...
Qg6 {[%clk 0:01:56.2]} 17. Qh3 {[%clk 0:02:31.9]} 17... h5 {[%clk 0:01:53]} 18.
Bc2 {[%clk 0:02:30.1]} 18... Qg4 {[%clk 0:01:52.3]} 19. Qh4 {[%clk 0:02:16.3]}
19... Qxh4 {[%clk 0:01:42.5]} 20. Nxh4 {[%clk 0:02:17.2]} 20... Nf5 {[%clk
0:01:42]} 21. Nxf5 {[%clk 0:01:53.9]} 21... exf5 {[%clk 0:01:42.9]} 22. Re1
{[%clk 0:01:52.3]} 22... Be6 {[%clk 0:01:42.9]} 23. Bc1 {[%clk 0:01:53]} 23...
Ke8 {[%clk 0:01:42.8]} 24. Ba3 {[%clk 0:01:53.7]} 24... Kd7 {[%clk 0:01:43.4]}
25. Bd6 {[%clk 0:01:45.1]} 25... h4 {[%clk 0:01:43]} 26. Reb1 {[%clk 0:01:44.5]}
26... g6 {[%clk 0:01:07.7]} 27. a5 {[%clk 0:01:43.7]} 27... Nxa5 {[%clk
0:01:02.8]} 28. Rxa5 {[%clk 0:01:42.3]} 28... bxa5 {[%clk 0:00:57.2]} 29. Ba4+
{[%clk 0:01:25.2]} 29... Kd8 {[%clk 0:00:53]} 30. Rb7 {[%clk 0:00:54.2]} 30...
f4 {[%clk 0:00:45.1]} 31. Kf1 {[%clk 0:00:46.2]} 31... h3 {[%clk 0:00:36.1]} 32.
g3 {[%clk 0:00:45.7]} 32... fxg3 {[%clk 0:00:36.5]} 33. fxg3 {[%clk 0:00:46.6]}
33... Rh5 {[%clk 0:00:35.5]} 34. Ke2 {[%clk 0:00:40.6]} 34... Rf5 {[%clk
0:00:33.8]} 35. Re7 {[%clk 0:00:39.4]} 35... Kc8 {[%clk 0:00:24.2]} 36. Bc6
{[%clk 0:00:38]} 1-0

[Event "*** Titled Tuesday Blitz"]
[Site "Chess.com"]
[Date "2020.11.10"]
[Round "4"]
[White "midedu"]
[Black "Nils_03"]
[Result "0-1"]
[WhiteElo "2072"]
[BlackElo "2246"]
[TimeControl "180+1"]
[EndTime "10:41:42 PST"]
[Termination "Nils_03 won on time"]

1. e4 {[%clk 0:01:08.6]} 1... e5 {[%clk 0:02:58.3]} 2. Nf3 {[%clk 0:01:06.4]}
2... Nc6 {[%clk 0:02:57.7]} 3. Bc4 {[%clk 0:01:06.1]} 3... Bc5 {[%clk
0:02:57.5]} 4. c3 {[%clk 0:01:05.6]} 4... Nf6 {[%clk 0:02:57.2]} 5. d3 {[%clk
0:01:06]} 5... d6 {[%clk 0:02:56.8]} 6. O-O {[%clk 0:01:06.5]} 6... a6 {[%clk
0:02:56.7]} 7. Nbd2 {[%clk 0:01:05.7]} 7... Ba7 {[%clk 0:02:56]} 8. Bb3 {[%clk
0:01:05]} 8... O-O {[%clk 0:02:54.4]} 9. Re1 {[%clk 0:01:02.1]} 9... Ng4 {[%clk
0:02:53.3]} 10. Re2 {[%clk 0:01:00.7]} 10... Kh8 {[%clk 0:02:53.2]} 11. h3
{[%clk 0:00:58.9]} 11... f5 {[%clk 0:02:53.2]} 12. hxg4 {[%clk 0:00:57.3]} 12...
fxg4 {[%clk 0:02:54.1]} 13. Ne1 {[%clk 0:00:51.9]} 13... Qh4 {[%clk 0:02:53.8]}
14. Nf1 {[%clk 0:00:42.4]} 14... Bxf2+ {[%clk 0:02:50.9]} 15. Rxf2 {[%clk
0:00:20.1]} 15... Qxf2+ {[%clk 0:02:51.8]} 16. Kh1 {[%clk 0:00:20.3]} 16...
Qxf1+ {[%clk 0:02:50.8]} 17. Kh2 {[%clk 0:00:19.9]} 17... Rf2 {[%clk 0:02:37.7]}
18. Be3 {[%clk 0:00:16.5]} 18... Rf6 {[%clk 0:02:28.4]} 19. Qd2 {[%clk
0:00:15.7]} 19... Bd7 {[%clk 0:02:18]} 20. Nc2 {[%clk 0:00:14.4]} 20... g3+
{[%clk 0:02:13.9]} 21. Kxg3 {[%clk 0:00:13.7]} 21... Rg6+ {[%clk 0:02:13.9]} 22.
Bg5 {[%clk 0:00:13.8]} 22... Qf4+ {[%clk 0:01:59.2]} 23. Qxf4 {[%clk 0:00:13.4]}
23... exf4+ {[%clk 0:02:00.1]} 24. Kxf4 {[%clk 0:00:13.3]} 24... Rf8+ {[%clk
0:02:00.7]} 25. Ke3 {[%clk 0:00:13.3]} 25... Rxg5 {[%clk 0:02:00.4]} 26. Rg1
{[%clk 0:00:11.9]} 26... Ne5 {[%clk 0:01:57.3]} 27. d4 {[%clk 0:00:11.1]} 27...
Ng4+ {[%clk 0:01:50.3]} 28. Kd3 {[%clk 0:00:09.8]} 28... Nf2+ {[%clk 0:01:41.6]}
29. Ke2 {[%clk 0:00:09.1]} 29... Nxe4 {[%clk 0:01:40.8]} 30. Ne3 {[%clk
0:00:06.9]} 30... Rf2+ {[%clk 0:01:38.6]} 31. Kd3 {[%clk 0:00:07]} 31... Bc6
{[%clk 0:01:29.4]} 32. d5 {[%clk 0:00:06.7]} 32... Nc5+ {[%clk 0:01:28.7]} 33.
Kc4 {[%clk 0:00:04.6]} 33... Bb5+ {[%clk 0:01:28]} 34. Kb4 {[%clk 0:00:04.5]}
34... Rf4+ {[%clk 0:01:27.8]} 35. Ka3 {[%clk 0:00:04.3]} 35... Re5 {[%clk
0:01:21.8]} 36. g3 {[%clk 0:00:01.8]} 36... Rfe4 {[%clk 0:01:11.5]} 37. Nc2
{[%clk 0:00:01.7]} 37... h6 {[%clk 0:01:00]} 38. Rf1 {[%clk 0:00:01.7]} 38...
Bxf1 {[%clk 0:00:58.5]} 0-1

[Event "*** Titled Tuesday Blitz"]
[Site "Chess.com"]
[Date "2020.11.10"]
[Round "4"]
[White "zala02"]
[Black "guillembaches"]
[Result "0-1"]
[WhiteElo "2145"]
[BlackElo "2380"]
[TimeControl "180+1"]
[EndTime "10:41:43 PST"]
[Termination "guillembaches won by resignation"]

1. d4 {[%clk 0:03:00.9]} 1... Nf6 {[%clk 0:02:59.3]} 2. c4 {[%clk 0:03:00.2]}
2... e6 {[%clk 0:02:59.7]} 3. Nc3 {[%clk 0:02:57.2]} 3... Bb4 {[%clk 0:02:59.1]}
4. e3 {[%clk 0:02:55.9]} 4... O-O {[%clk 0:02:58.4]} 5. Ne2 {[%clk 0:02:55.5]}
5... c6 {[%clk 0:02:57.8]} 6. a3 {[%clk 0:02:52.2]} 6... Ba5 {[%clk 0:02:57.5]}
7. c5 {[%clk 0:02:51.6]} 7... d5 {[%clk 0:02:47.5]} 8. cxd6 {[%clk 0:02:52]}
8... Qxd6 {[%clk 0:02:45.2]} 9. g3 {[%clk 0:02:48.4]} 9... e5 {[%clk 0:02:41.1]}
10. Bg2 {[%clk 0:02:44.7]} 10... exd4 {[%clk 0:02:40.1]} 11. Qxd4 {[%clk
0:02:36.2]} 11... Qxd4 {[%clk 0:02:33.7]} 12. Nxd4 {[%clk 0:02:37.1]} 12... c5
{[%clk 0:02:08.3]} 13. Ne2 {[%clk 0:02:22.7]} 13... Nc6 {[%clk 0:02:01.2]} 14.
O-O {[%clk 0:02:22.2]} 14... Be6 {[%clk 0:01:52.8]} 15. Nf4 {[%clk 0:01:44.2]}
15... Bb3 {[%clk 0:01:50.4]} 16. e4 {[%clk 0:01:42]} 16... Nd4 {[%clk
0:01:24.4]} 17. Be3 {[%clk 0:01:40.2]} 17... Ng4 {[%clk 0:01:15.5]} 18. Bxd4
{[%clk 0:01:03.7]} 18... cxd4 {[%clk 0:01:16.4]} 19. Ncd5 {[%clk 0:01:04.4]}
19... Ne5 {[%clk 0:01:04.9]} 20. Ne7+ {[%clk 0:00:47.6]} 20... Kh8 {[%clk
0:01:04.4]} 21. Nf5 {[%clk 0:00:48.5]} 21... d3 {[%clk 0:00:59.8]} 22. Nd4
{[%clk 0:00:46]} 22... Bc2 {[%clk 0:00:50.7]} 23. Nxc2 {[%clk 0:00:32.9]} 23...
dxc2 {[%clk 0:00:50]} 24. Rfc1 {[%clk 0:00:29.7]} 24... Rac8 {[%clk 0:00:48.6]}
25. b4 {[%clk 0:00:29.8]} 25... Bb6 {[%clk 0:00:42.6]} 26. Ra2 {[%clk
0:00:29.5]} 26... Rfd8 {[%clk 0:00:28]} 27. Raxc2 {[%clk 0:00:23.1]} 27... Rxc2
{[%clk 0:00:28]} 28. Rxc2 {[%clk 0:00:24]} 28... Rd1+ {[%clk 0:00:27.6]} 29. Bf1
{[%clk 0:00:24.6]} 29... Nf3+ {[%clk 0:00:28.2]} 30. Kg2 {[%clk 0:00:23.5]}
30... Ne1+ {[%clk 0:00:28.3]} 31. Kg1 {[%clk 0:00:09.3]} 31... Nxc2 {[%clk
0:00:28.7]} 0-1